fUSD/lending_fUSD_20240725
["ID","MTS","AMOUNT","RATE_DAILY","PERIOD"]
[333144804,1721887833183,-642.27520893,0.00010778,2]
[333144805,1721887833195,-300.3,0.00010778,2]
[333144806,1721887833206,-3153.12701687,0.00010778,2]
[333144807,1721887833549,-978.60999834,0.00010778,2]
[333144808,1721887833559,-1705.5277,0.00010878,2]
[333144809,1721887833569,-138.2750479,0.000109,2]
[333144810,1721887833584,-31.37388546,0.000109,2]
[333144811,1721887833594,-229.78189621,0.000109,2]
[333144812,1721887833606,-312.75876885,0.000109,2]
[333144813,1721887833618,-766.45933494,0.000109,2]
[333144814,1721887833629,-256.52555472,0.00010911,2]
[333144815,1721887833641,-243.47444528,0.00010911,2]
[333144816,1721887833651,-329.41132551,0.00010969,2]
[333144817,1721887833663,-284.1080006,0.00010969,2]
[333144818,1721887833845,-186.48067389,0.00010969,2]
[333144819,1721887833860,-500.0,0.00010976,2]
[333144820,1721887833870,-428.86790698,0.00010976,2]
[333144821,1721887833879,-74.38221884,0.00010976,2]
[333144822,1721887833892,-425.61778116,0.00010976,2]
[333144823,1721887833903,-500.0,0.00010976,2]
[333144824,1721887833913,-817.49,0.00010976,2]
[333144825,1721887833923,-500.0,0.00010976,2]
[333144826,1721887833934,-596.72,0.00010976,2]
[333144827,1721887833944,-500.0,0.00010976,2]
[333144828,1721887833954,-500.0,0.00010976,2]
[333144829,1721887833964,-500.0,0.00010976,2]
[333144830,1721887833974,-500.0,0.00010976,2]
[333144831,1721887833984,-961.74,0.00010976,2]
[333144832,1721887833994,-500.0,0.00010976,2]
[333144833,1721887834004,-500.0,0.00010976,2]
[333144834,1721887834014,-522.75,0.00010976,2]
[333144835,1721887834023,-500.0,0.00010976,2]
[333144836,1721887834034,-1172.05,0.00010976,2]
[333144837,1721887834043,-581.08,0.00010976,2]
[333144838,1721887834052,-587.42,0.00010976,2]
[333144839,1721887834062,-810.68,0.00010976,2]
[333144840,1721887834072,-500.0,0.00010976,2]
[333144841,1721887834081,-778.42,0.00010976,2]
[333144842,1721887834091,-536.38,0.00010976,2]
[333144843,1721887834100,-574.82,0.00010976,2]
[333144844,1721887834110,-500.0,0.00010977,2]
[333144845,1721887834119,-500.0,0.00010977,2]
[333144846,1721887834129,-500.0,0.00010977,2]
[333144847,1721887834138,-202.6560702,0.00010977,2]
[333144848,1721887834148,-500.0,0.00010977,2]
[333144849,1721887834158,-500.0,0.00010977,2]
[333144850,1721887834168,-613.83,0.00010977,2]
[333144851,1721887834177,-500.0,0.00010978,2]
[333144852,1721887834187,-476.24317057,0.00010978,2]
[333144853,1721887834197,-500.0,0.00010978,2]
[333144854,1721887834207,-500.0,0.00010978,2]
[333144855,1721887834218,-817.49,0.00010978,2]
[333144856,1721887834227,-224.63978627,0.00010978,2]
[333144857,1721887834237,-596.72,0.00010978,2]
[333144858,1721887834247,-500.0,0.00010978,2]
[333144859,1721887834257,-500.0,0.00010978,2]
[333144860,1721887834267,-500.0,0.00010978,2]
[333144861,1721887834278,-500.0,0.00010978,2]
[333144862,1721887834288,-961.74,0.00010978,2]
[333144863,1721887834298,-500.0,0.00010978,2]
[333144864,1721887834308,-500.0,0.00010978,2]
[333144865,1721887834318,-522.75,0.00010978,2]
[333144866,1721887834328,-500.0,0.00010978,2]
[333144867,1721887834338,-1172.05,0.00010978,2]
[333144868,1721887834348,-581.08,0.00010978,2]
[333144869,1721887834358,-587.42,0.00010978,2]
[333144870,1721887834368,-810.68,0.00010978,2]
[333144871,1721887834378,-500.0,0.00010978,2]
[333144872,1721887834388,-778.42,0.00010978,2]
[333144873,1721887834399,-613.83,0.00010978,2]
[333144874,1721887834409,-536.38,0.00010978,2]
[333144875,1721887834419,-574.82,0.00010978,2]
[333144876,1721887834429,-1820.0,0.00010984,2]
[333144877,1721887834439,-366.881,0.00010984,2]
[333144878,1721887834449,-1663.0,0.00010984,2]
[333144879,1721887834459,-810.0,0.00010984,2]
[333144880,1721887834470,-450.389,0.00010984,2]
[333144881,1721887834480,-599.658,0.00010984,2]
[333144882,1721887834489,-183.659,0.00010984,2]
[333144883,1721887834499,-655.701,0.00010984,2]
[333144884,1721887834509,-2382.0,0.00010984,2]
[333144885,1721887834518,-150.0,0.00010984,2]
[333144886,1721887834528,-500.0,0.00010988,2]
[333144887,1721887834537,-500.0,0.00010988,2]
[333144888,1721887834547,-556.9,0.00010988,2]
[333144889,1721887834556,-500.0,0.00010988,2]
[333144890,1721887834566,-580.90793589,0.00010988,2]
[333144891,1721887834577,-500.0,0.00010988,2]
[333144892,1721887834586,-500.0,0.00010988,2]
[333144893,1721887834596,-500.0,0.00010988,2]
[333144894,1721887834606,-500.0,0.00010988,2]
[333144895,1721887834616,-1788.92,0.00010988,2]
[333144896,1721887834625,-1967.93,0.00010988,2]
[333144897,1721887834635,-500.0,0.00010988,2]
[333144898,1721887834645,-538.03,0.00010988,2]
[333144899,1721887834654,-237.33590628,0.00010988,2]
[333144900,1721887834664,-1302.94,0.00010988,2]
[333144901,1721887834673,-500.0,0.00010988,2]
[333144902,1721887834682,-1193.29,0.00010988,2]
[333144903,1721887834692,-500.0,0.00010988,2]
[333144904,1721887834702,-2731.0,0.00010988,2]
[333144905,1721887834711,-500.0,0.00010988,2]
[333144906,1721887834721,-543.96,0.00010988,2]
[333144907,1721887834731,-3782.24,0.00010988,2]
[333144908,1721887834741,-1238.08,0.00010988,2]
[333144909,1721887834751,-3357.42,0.00010988,2]
[333144910,1721887834761,-500.0,0.00010988,2]
[333144911,1721887834770,-479.55237765,0.00010988,2]
[333144912,1721887834780,-500.0,0.00010988,2]
[333144913,1721887834790,-500.0,0.00010988,2]
[333144914,1721887834799,-2894.44,0.00010988,2]
[333144915,1721887834808,-500.0,0.00010988,2]
[333144916,1721887834818,-4526.57,0.00010988,2]
[333144917,1721887834828,-639.52205505,0.00010989,2]
[333144918,1721887834838,-500.0,0.00010989,2]
[333144919,1721887834848,-500.0,0.00010989,2]
[333144920,1721887834860,-500.0,0.00010989,2]
[333144921,1721887834870,-817.49,0.00010989,2]
[333144922,1721887834879,-596.72,0.00010989,2]
[333144923,1721887834888,-500.0,0.00010989,2]
[333144924,1721887834899,-500.0,0.00010989,2]
[333144925,1721887834908,-500.0,0.00010989,2]
[333144926,1721887834918,-500.0,0.00010989,2]
[333144927,1721887834928,-500.0,0.00010989,2]
[333144928,1721887834939,-500.0,0.00010992,2]
[333144929,1721887834951,-385.13241775,0.00010992,2]
[333144930,1721887834960,-500.0,0.00010992,2]
[333144931,1721887834970,-306.05420706,0.00010992,2]
[333144932,1721887834980,-500.0,0.00010992,2]
[333144933,1721887834990,-829.49,0.00010992,2]
[333144934,1721887835000,-500.0,0.00010992,2]
[333144935,1721887835009,-500.0,0.00010992,2]
[333144936,1721887835020,-500.0,0.00010992,2]
[333144937,1721887835029,-2834.13,0.00010992,2]
[333144938,1721887835038,-1301.39,0.00010992,2]
[333144939,1721887835047,-2962.98,0.00010992,2]
[333144940,1721887835057,-1280.91,0.00010992,2]
[333144941,1721887835066,-3018.66,0.00010992,2]
[333144942,1721887835076,-553.76,0.00010992,2]
[333144943,1721887835086,-3954.92,0.00010992,2]
[333144944,1721887835095,-500.0,0.00010992,2]
[333144945,1721887835105,-500.0,0.00010992,2]
[333144946,1721887835116,-500.0,0.00010992,2]
[333144947,1721887835127,-1333.25,0.00010992,2]
[333144948,1721887835136,-1193.8,0.00010992,2]
[333144949,1721887835146,-710.59,0.00010992,2]
[333144950,1721887835155,-1522.01,0.00010992,2]
[333144951,1721887835165,-500.0,0.00010992,2]
[333144952,1721887835174,-1207.13,0.00010992,2]
[333144953,1721887835184,-1736.03,0.00010992,2]
[333144954,1721887835193,-2583.52,0.00010992,2]
[333144955,1721887835202,-500.0,0.00010992,2]
[333144956,1721887835211,-2538.15,0.00010992,2]
[333144957,1721887835220,-1177.16,0.00010992,2]
[333144958,1721887835229,-1772.46,0.00010992,2]
[333144959,1721887835238,-642.95,0.00010992,2]
[333144960,1721887835247,-500.0,0.00010993,2]
[333144961,1721887835256,-961.74,0.00010993,2]
[333144962,1721887835266,-500.0,0.00010993,2]
[333144963,1721887835275,-522.75,0.00010993,2]
[333144964,1721887835284,-500.0,0.00010993,2]
[333144965,1721887835293,-1172.05,0.00010993,2]
[333144966,1721887835302,-581.08,0.00010993,2]
[333144967,1721887835311,-587.42,0.00010993,2]
[333144968,1721887835320,-810.68,0.00010993,2]
[333144969,1721887835331,-778.42,0.00010993,2]
[333144970,1721887835340,-613.83,0.00010993,2]
[333144971,1721887835349,-536.38,0.00010993,2]
[333144972,1721887835359,-574.82,0.00010993,2]
[333144973,1721887835368,-501.51084705,0.00010994,2]
[333144974,1721887835378,-500.0,0.00010994,2]
[333144975,1721887835387,-500.0,0.00010994,2]
[333144976,1721887835396,-817.49,0.00010994,2]
[333144977,1721887835405,-596.72,0.00010994,2]
[333144978,1721887835414,-500.0,0.00010994,2]
[333144979,1721887835423,-500.0,0.00010994,2]
[333144980,1721887835432,-500.0,0.00010994,2]
[333144981,1721887835442,-500.0,0.00010994,2]
[333144982,1721887835451,-500.0,0.00010994,2]
[333144983,1721887835460,-1938.0,0.00010994,2]
[333144984,1721887835469,-500.0,0.00010994,2]
[333144985,1721887835479,-500.0,0.00010994,2]
[333144986,1721887835489,-1094.54,0.00010994,2]
[333144987,1721887835499,-1313.98,0.00010994,2]
[333144988,1721887835509,-606.54,0.00010994,2]
[333144989,1721887835519,-500.0,0.00010994,2]
[333144990,1721887835528,-1854.32,0.00010994,2]
[333144991,1721887835537,-1562.17,0.00010994,2]
[333144992,1721887835546,-728.55,0.00010994,2]
[333144993,1721887835556,-500.0,0.00010995,2]
[333144994,1721887835566,-500.0,0.00010995,2]
[333144995,1721887835576,-817.49,0.00010995,2]
[333144996,1721887835586,-596.72,0.00010995,2]
[333144997,1721887835595,-500.0,0.00010995,2]
[333144998,1721887835606,-500.0,0.00010995,2]
[333144999,1721887835617,-500.0,0.00010995,2]
[333145000,1721887835626,-500.0,0.00010995,2]
[333145001,1721887835636,-500.0,0.00010995,2]
[333145002,1721887835645,-500.0,0.00010995,2]
[333145003,1721887835654,-406.80465482,0.00010995,2]
[333145004,1721887835665,-961.74,0.00010995,2]
[333145005,1721887835675,-961.74,0.00010995,2]
[333145006,1721887835686,-556.9,0.00010995,2]
[333145007,1721887835698,-500.0,0.00010995,2]
[333145008,1721887835708,-500.0,0.00010995,2]
[333145009,1721887835719,-500.0,0.00010995,2]
[333145010,1721887835730,-522.75,0.00010995,2]
[333145011,1721887835742,-500.0,0.00010995,2]
[333145012,1721887835752,-522.75,0.00010995,2]
[333145013,1721887835762,-500.0,0.00010995,2]
[333145014,1721887835772,-500.0,0.00010995,2]
[333145015,1721887835782,-1172.05,0.00010995,2]
[333145016,1721887835792,-1172.05,0.00010995,2]
[333145017,1721887835801,-581.08,0.00010995,2]
[333145018,1721887835810,-581.08,0.00010995,2]
[333145019,1721887835820,-587.42,0.00010995,2]
[333145020,1721887835833,-587.42,0.00010995,2]
[333145021,1721887835842,-500.0,0.00010995,2]
[333145022,1721887835852,-500.0,0.00010995,2]
[333145023,1721887835863,-810.68,0.00010995,2]
[333145024,1721887835872,-810.68,0.00010995,2]
[333145025,1721887835883,-500.0,0.00010995,2]
[333145026,1721887835893,-778.42,0.00010995,2]
[333145027,1721887835903,-778.42,0.00010995,2]
[333145028,1721887835912,-613.83,0.00010995,2]
[333145029,1721887835921,-613.83,0.00010995,2]
[333145030,1721887835932,-536.38,0.00010995,2]
[333145031,1721887835942,-536.38,0.00010995,2]
[333145032,1721887835952,-500.0,0.00010995,2]
[333145033,1721887835961,-574.82,0.00010995,2]
[333145034,1721887835971,-574.82,0.00010995,2]
[333145035,1721887835980,-500.0,0.00010995,2]
[333145036,1721887835989,-1788.92,0.00010995,2]
[333145037,1721887835999,-1967.93,0.00010995,2]
[333145038,1721887836008,-500.0,0.00010995,2]
[333145039,1721887836017,-500.0,0.00010995,2]
[333145040,1721887836027,-829.49,0.00010995,2]
[333145041,1721887836036,-500.0,0.00010995,2]
[333145042,1721887836046,-500.0,0.00010995,2]
[333145043,1721887836055,-500.0,0.00010995,2]
[333145044,1721887836065,-2834.13,0.00010995,2]
[333145045,1721887836074,-1301.39,0.00010995,2]
[333145046,1721887836083,-2962.98,0.00010995,2]
[333145047,1721887836092,-1302.94,0.00010995,2]
[333145048,1721887836102,-1280.91,0.00010995,2]
[333145049,1721887836111,-3018.66,0.00010995,2]
[333145050,1721887836120,-500.0,0.00010995,2]
[333145051,1721887836129,-553.76,0.00010995,2]
[333145052,1721887836138,-1193.29,0.00010995,2]
[333145053,1721887836148,-500.0,0.00010995,2]
[333145054,1721887836158,-2731.0,0.00010995,2]
[333145055,1721887836167,-500.0,0.00010995,2]
[333145056,1721887836175,-3954.92,0.00010995,2]
[333145057,1721887836182,-543.96,0.00010995,2]
[333145058,1721887836190,-500.0,0.00010995,2]
[333145059,1721887836198,-3782.24,0.00010995,2]
[333145060,1721887836206,-500.0,0.00010995,2]
[333145061,1721887836214,-1238.08,0.00010995,2]
[333145062,1721887836221,-500.0,0.00010995,2]
[333145063,1721887836229,-1333.25,0.00010995,2]
[333145064,1721887836238,-1193.8,0.00010995,2]
[333145065,1721887836247,-3357.42,0.00010995,2]
[333145066,1721887836256,-500.0,0.00010995,2]
[333145067,1721887836266,-710.59,0.00010995,2]
[333145068,1721887836276,-500.0,0.00010995,2]
[333145069,1721887836286,-1522.01,0.00010995,2]
[333145070,1721887836295,-500.0,0.00010995,2]
[333145071,1721887836304,-500.0,0.00010995,2]
[333145072,1721887836313,-1207.13,0.00010995,2]
[333145073,1721887836322,-2894.44,0.00010995,2]
[333145074,1721887836334,-500.0,0.00010995,2]
[333145075,1721887836343,-1736.03,0.00010995,2]
[333145076,1721887836352,-2583.52,0.00010995,2]
[333145077,1721887836361,-500.0,0.00010995,2]
[333145078,1721887836369,-4526.57,0.00010995,2]
[333145079,1721887836378,-2538.15,0.00010995,2]
[333145080,1721887836388,-1177.16,0.00010995,2]
[333145081,1721887836398,-1772.46,0.00010995,2]
[333145082,1721887836408,-642.95,0.00010995,2]
[333145083,1721887836417,-165.42600709,0.00010995,2]
[333145084,1721887836427,-500.0,0.00010996,2]
[333145085,1721887836436,-500.0,0.00010996,2]
[333145086,1721887836445,-500.0,0.00010996,2]
[333145087,1721887836455,-500.0,0.00010996,2]
[333145088,1721887836465,-403.74637331,0.00010996,2]
[333145089,1721887836474,-817.49,0.00010996,2]
[333145090,1721887836483,-817.49,0.00010996,2]
[333145091,1721887836492,-817.49,0.00010996,2]
[333145092,1721887836501,-596.72,0.00010996,2]
[333145093,1721887836510,-596.72,0.00010996,2]
[333145094,1721887836519,-596.72,0.00010996,2]
[333145095,1721887836531,-500.0,0.00010996,2]
[333145096,1721887836541,-500.0,0.00010996,2]
[333145097,1721887836552,-500.0,0.00010996,2]
[333145098,1721887836563,-500.0,0.00010996,2]
[333145099,1721887836746,-500.0,0.00010996,2]
[333145100,1721887836756,-500.0,0.00010996,2]
[333145101,1721887836765,-500.0,0.00010996,2]
[333145102,1721887836775,-237.97137758,0.00010996,2]
[333145103,1721887836784,-961.74,0.00010996,2]
[333145104,1721887836794,-961.74,0.00010996,2]
[333145105,1721887836803,-500.0,0.00010996,2]
[333145106,1721887836812,-500.0,0.00010996,2]
[333145107,1721887836821,-500.0,0.00010996,2]
[333145108,1721887836832,-500.0,0.00010996,2]
[333145109,1721887836842,-500.0,0.00010996,2]
[333145110,1721887836854,-522.75,0.00010996,2]
[333145111,1721887836864,-522.75,0.00010996,2]
[333145112,1721887836874,-500.0,0.00010996,2]
[333145113,1721887836884,-500.0,0.00010996,2]
[333145114,1721887836895,-1172.05,0.00010996,2]
[333145115,1721887836906,-1172.05,0.00010996,2]
[333145116,1721887836916,-581.08,0.00010996,2]
[333145117,1721887836926,-581.08,0.00010996,2]
[333145118,1721887836936,-587.42,0.00010996,2]
[333145119,1721887836948,-587.42,0.00010996,2]
[333145120,1721887836957,-810.68,0.00010996,2]
[333145121,1721887836967,-810.68,0.00010996,2]
[333145122,1721887836976,-262.96977812,0.00010996,2]
[333145123,1721887836986,-778.42,0.00010996,2]
[333145124,1721887836995,-778.42,0.00010996,2]
[333145125,1721887837004,-613.83,0.00010996,2]
[333145126,1721887837014,-613.83,0.00010996,2]
[333145127,1721887837024,-536.38,0.00010996,2]
[333145128,1721887837035,-536.38,0.00010996,2]
[333145129,1721887837044,-574.82,0.00010996,2]
[333145130,1721887837053,-574.82,0.00010996,2]
[333145131,1721887837064,-1302.94,0.00010996,2]
[333145132,1721887837074,-500.0,0.00010996,2]
[333145133,1721887837084,-500.0,0.00010996,2]
[333145134,1721887837093,-3782.24,0.00010996,2]
[333145135,1721887837102,-1238.08,0.00010996,2]
[333145136,1721887837113,-3357.42,0.00010996,2]
[333145137,1721887837122,-1938.0,0.00010996,2]
[333145138,1721887837132,-500.0,0.00010996,2]
[333145139,1721887837142,-500.0,0.00010996,2]
[333145140,1721887837153,-1094.54,0.00010996,2]
[333145141,1721887837163,-1313.98,0.00010996,2]
[333145142,1721887837172,-606.54,0.00010996,2]
[333145143,1721887837181,-500.0,0.00010996,2]
[333145144,1721887837191,-1854.32,0.00010996,2]
[333145145,1721887837200,-1562.17,0.00010996,2]
[333145146,1721887837209,-728.55,0.00010996,2]
[333145147,1721887837219,-339.75103037,0.00010997,2]
[333145148,1721887837228,-448.93569241,0.00010997,2]
[333145149,1721887837238,-184.59377291,0.00010997,2]
[333145150,1721887837248,-2000.0,0.00010997,2]
[333145151,1721887837257,-200.0,0.00010997,2]
[333145152,1721887837267,-500.0,0.00010997,2]
[333145153,1721887837276,-817.49,0.00010997,2]
[333145154,1721887837286,-200.0,0.00010997,2]
[333145155,1721887837295,-596.72,0.00010997,2]
[333145156,1721887837304,-500.0,0.00010997,2]
[333145157,1721887837314,-500.0,0.00010997,2]
[333145158,1721887837323,-500.0,0.00010997,2]
[333145159,1721887837334,-500.0,0.00010997,2]
[333145160,1721887837344,-500.0,0.00010997,2]
[333145161,1721887837353,-500.0,0.00010997,2]
[333145162,1721887837362,-961.74,0.00010997,2]
[333145163,1721887837372,-556.9,0.00010997,2]
[333145164,1721887837381,-556.9,0.00010997,2]
[333145165,1721887837391,-500.0,0.00010997,2]
[333145166,1721887837400,-500.0,0.00010997,2]
[333145167,1721887837410,-500.0,0.00010997,2]
[333145168,1721887837419,-504.30586424,0.00010997,2]
[333145169,1721887837429,-522.75,0.00010997,2]
[333145170,1721887837438,-500.0,0.00010997,2]
[333145171,1721887837447,-1172.05,0.00010997,2]
[333145172,1721887837457,-581.08,0.00010997,2]
[333145173,1721887837466,-587.42,0.00010997,2]
[333145174,1721887837475,-500.0,0.00010997,2]
[333145175,1721887837485,-500.0,0.00010997,2]
[333145176,1721887837494,-500.0,0.00010997,2]
[333145177,1721887837503,-500.0,0.00010997,2]
[333145178,1721887837512,-810.68,0.00010997,2]
[333145179,1721887837522,-778.42,0.00010997,2]
[333145180,1721887837531,-536.38,0.00010997,2]
[333145181,1721887837540,-200.0,0.00010997,2]
[333145182,1721887837549,-500.0,0.00010997,2]
[333145183,1721887837559,-500.0,0.00010997,2]
[333145184,1721887837568,-574.82,0.00010997,2]
[333145185,1721887837577,-500.0,0.00010997,2]
[333145186,1721887837586,-500.0,0.00010997,2]
[333145187,1721887837595,-1788.92,0.00010997,2]
[333145188,1721887837605,-1788.92,0.00010997,2]
[333145189,1721887837614,-1967.93,0.00010997,2]
[333145190,1721887837623,-1967.93,0.00010997,2]
[333145191,1721887837633,-500.0,0.00010997,2]
[333145192,1721887837642,-500.0,0.00010997,2]
[333145193,1721887837651,-500.0,0.00010997,2]
[333145194,1721887837661,-456.57106,0.00010997,2]
[333145195,1721887837671,-829.49,0.00010997,2]
[333145196,1721887837680,-829.49,0.00010997,2]
[333145197,1721887837690,-500.0,0.00010997,2]
[333145198,1721887837699,-500.0,0.00010997,2]
[333145199,1721887837708,-261.3055275,0.00010997,2]
[333145200,1721887837717,-500.0,0.00010997,2]
[333145201,1721887837727,-2834.13,0.00010997,2]
[333145202,1721887837736,-500.0,0.00010997,2]
[333145203,1721887837745,-2834.13,0.00010997,2]
[333145204,1721887837754,-1301.39,0.00010997,2]
[333145205,1721887837763,-1301.39,0.00010997,2]
[333145206,1721887837772,-2962.98,0.00010997,2]
[333145207,1721887837781,-2962.98,0.00010997,2]
[333145209,1721887837790,-1302.94,0.00010997,2]
[333145210,1721887837800,-1280.91,0.00010997,2]
[333145212,1721887837809,-1280.91,0.00010997,2]
[333145214,1721887837818,-3018.66,0.00010997,2]
[333145215,1721887837827,-3018.66,0.00010997,2]
[333145217,1721887837836,-500.0,0.00010997,2]
[333145219,1721887837845,-553.76,0.00010997,2]
[333145221,1721887837859,-553.76,0.00010997,2]
[333145222,1721887837868,-1193.29,0.00010997,2]
[333145224,1721887837877,-1193.29,0.00010997,2]
[333145226,1721887837887,-500.0,0.00010997,2]
[333145228,1721887837898,-500.0,0.00010997,2]
[333145230,1721887837908,-2731.0,0.00010997,2]
[333145231,1721887837917,-2731.0,0.00010997,2]
[333145232,1721887837926,-500.0,0.00010997,2]
[333145233,1721887837936,-3954.92,0.00010997,2]
[333145234,1721887837948,-3954.92,0.00010997,2]
[333145235,1721887837958,-543.96,0.00010997,2]
[333145236,1721887837968,-543.96,0.00010997,2]
[333145237,1721887837978,-500.0,0.00010997,2]
[333145238,1721887837988,-500.0,0.00010997,2]
[333145239,1721887837997,-3782.24,0.00010997,2]
[333145240,1721887838007,-500.0,0.00010997,2]
[333145241,1721887838016,-500.0,0.00010997,2]
[333145242,1721887838025,-1238.08,0.00010997,2]
[333145243,1721887838035,-500.0,0.00010997,2]
[333145244,1721887838044,-500.0,0.00010997,2]
[333145245,1721887838054,-1333.25,0.00010997,2]
[333145246,1721887838063,-1193.8,0.00010997,2]
[333145247,1721887838073,-1333.25,0.00010997,2]
[333145248,1721887838084,-1193.8,0.00010997,2]
[333145249,1721887838093,-3357.42,0.00010997,2]
[333145250,1721887838103,-500.0,0.00010997,2]
[333145251,1721887838114,-500.0,0.00010997,2]
[333145252,1721887838124,-1938.0,0.00010997,2]
[333145253,1721887838134,-710.59,0.00010997,2]
[333145254,1721887838143,-710.59,0.00010997,2]
[333145255,1721887838152,-500.0,0.00010997,2]
[333145256,1721887838162,-1522.01,0.00010997,2]
[333145257,1721887838172,-500.0,0.00010997,2]
[333145258,1721887838181,-1522.01,0.00010997,2]
[333145259,1721887838190,-500.0,0.00010997,2]
[333145260,1721887838199,-500.0,0.00010997,2]
[333145261,1721887838208,-500.0,0.00010997,2]
[333145262,1721887838218,-500.0,0.00010997,2]
[333145263,1721887838227,-500.0,0.00010997,2]
[333145264,1721887838236,-162.62474768,0.00010997,2]
[333145265,1721887838245,-2849.50887,0.00010997,2]
[333145266,1721887838255,-1094.54,0.00010997,2]
[333145267,1721887838264,-1207.13,0.00010997,2]
[333145268,1721887838273,-1207.13,0.00010997,2]
[333145269,1721887838283,-2894.44,0.00010997,2]
[333145270,1721887838292,-1313.98,0.00010997,2]
[333145271,1721887838301,-2894.44,0.00010997,2]
[333145272,1721887838311,-500.0,0.00010997,2]
[333145273,1721887838320,-500.0,0.00010997,2]
[333145274,1721887838330,-606.54,0.00010997,2]
[333145275,1721887838340,-500.0,0.00010997,2]
[333145276,1721887838349,-1736.03,0.00010997,2]
[333145277,1721887838359,-1736.03,0.00010997,2]
[333145278,1721887838368,-2583.52,0.00010997,2]
[333145279,1721887838378,-1854.32,0.00010997,2]
[333145280,1721887838387,-2583.52,0.00010997,2]
[333145281,1721887838396,-500.0,0.00010997,2]
[333145282,1721887838406,-4526.57,0.00010997,2]
[333145283,1721887838416,-516.74,0.00010997,2]
[333145284,1721887838426,-4526.57,0.00010997,2]
[333145285,1721887838435,-1562.17,0.00010997,2]
[333145286,1721887838445,-2538.15,0.00010997,2]
[333145287,1721887838455,-2538.15,0.00010997,2]
[333145288,1721887838464,-1177.16,0.00010997,2]
[333145289,1721887838474,-1177.16,0.00010997,2]
[333145290,1721887838483,-1772.46,0.00010997,2]
[333145291,1721887838492,-1772.46,0.00010997,2]
[333145292,1721887838502,-642.95,0.00010997,2]
[333145293,1721887838511,-642.95,0.00010997,2]
[333145294,1721887838520,-728.55,0.00010997,2]
[333145295,1721887838530,-1157.98204963,0.00010997,2]
[333145296,1721887838539,-580.0,0.00010998,2]
[333145297,1721887838548,-346.05462783,0.00010998,2]
[333145298,1721887838558,-817.49,0.00010998,2]
[333145299,1721887838567,-817.49,0.00010998,2]
[333145300,1721887838576,-817.49,0.00010998,2]
[333145301,1721887838586,-817.49,0.00010998,2]
[333145302,1721887838596,-596.72,0.00010998,2]
[333145303,1721887838605,-596.72,0.00010998,2]
[333145304,1721887838615,-596.72,0.00010998,2]
[333145305,1721887838624,-596.72,0.00010998,2]
[333145306,1721887838633,-500.0,0.00010998,2]
[333145308,1721887838643,-283.11035016,0.00010998,2]
[333145310,1721887838652,-500.0,0.00010998,2]
[333145312,1721887838661,-500.0,0.00010998,2]
[333145314,1721887838671,-500.0,0.00010998,2]
[333145316,1721887838682,-500.0,0.00010998,2]
[333145318,1721887838692,-500.0,0.00010998,2]
[333145320,1721887838701,-500.0,0.00010998,2]